bitfinex/quotes_SOLUSD_20220116
["timestamp","ask_amount","ask_price","bid_price","bid_amount"]
[1642349609260,38.26406773,149.96,149.9,11.46512496]
[1642349609858,10.0058,149.97,149.9,11.46512496]
[1642349610159,1.84656608,149.99,149.9,11.46512496]
[1642349610358,1.84656608,149.99,149.9,78.15512496]
[1642349610659,26.07076608,150.0,149.9,11.46512496]
[1642349611058,42.42836055,149.99,149.9,11.46512496]
[1642349611560,52.43266055,149.99,149.9,11.46512496]
[1642349611959,54.13343643,149.99,149.9,11.46512496]
[1642349613166,52.43266055,149.99,149.9,11.46512496]
[1642349613563,42.42836055,149.99,149.9,11.46512496]
[1642349613863,1.84656608,150.0,149.9,78.15512496]
[1642349614761,43.29706392,150.0,149.9,78.15512496]
[1642349615161,41.45049784,150.0,149.9,78.15512496]
[1642349615562,51.45409784,150.0,149.9,11.46512496]
[1642349617265,53.30066392,150.0,149.9,11.46512496]
[1642349618066,51.45409784,150.0,149.9,11.46512496]
[1642349618766,53.30066392,150.0,149.9,11.46512496]
[1642349619570,10.0052,149.98,149.9,11.46512496]
[1642349619869,48.6479176,149.97,149.9,11.46512496]
[1642349620369,48.6479176,149.97,149.9,9.51]
[1642349622580,58.6537176,149.97,149.9,9.51]
[1642349623400,60.50028368,149.97,149.9,9.51]
[1642349624001,60.50028368,149.97,149.91,5.59756586]
[1642349624201,60.50028368,149.97,149.9,9.51]
[1642349625201,60.50028368,149.97,149.9,33.94938752]
[1642349626600,1.84656608,149.96,149.9,33.94938752]
[1642349626802,11.85276608,149.96,149.9,33.94938752]
[1642349628504,1.84656608,149.96,149.9,33.94938752]
[1642349629105,1.84656608,149.96,149.91,66.69]
[1642349629405,1.84656608,149.96,149.93,1.44625303]
[1642349629606,1.84656608,149.97,149.93,10.95625303]
[1642349630605,1.84656608,149.99,149.93,10.95625303]
[1642349631706,1.84656608,149.98,149.93,10.95625303]
[1642349634209,1.84656608,149.98,149.93,77.64625303]
[1642349634410,1.84656608,149.99,149.93,77.64625303]
[1642349636112,48.76354149,149.99,149.93,10.95625303]
[1642349637214,1.84656608,149.99,149.93,10.95625303]
[1642349640321,38.81631456,149.98,149.93,10.95625303]
[1642349640517,38.81631456,149.98,149.93,9.51]
[1642349641020,38.81631456,149.98,149.92,24.2195]
[1642349641620,40.66288064,149.98,149.92,24.2195]
[1642349642419,1.84656608,149.98,149.92,24.2195]
[1642349649753,1.84656608,149.98,149.92,33.7295]
[1642349651256,1.84656608,149.98,149.93,66.69]
[1642349651655,1.84656608,149.98,149.94,1.02734661]
[1642349651855,1.84656608,149.98,149.94,10.53734661]
[1642349652462,3.78658571,150.02,149.95,189.69]
[1642349652657,3.78658571,150.03,149.96,9.51]
[1642349652858,8.571e-05,150.03,149.97,66.95]
[1642349653058,8.571e-05,150.03,149.98,9.51]
[1642349653757,8.571e-05,150.03,149.98,33.354]
[1642349653959,5.63664774,150.07,149.98,33.354]
[1642349654160,40.94672371,150.08,149.99,66.69]
[1642349654362,40.94672371,150.08,150.0,1.02734661]
[1642349654559,40.94672371,150.08,150.0,77.22734661]
[1642349659563,40.94672371,150.08,150.0,10.53734661]
[1642349659763,50.94502371,150.08,150.0,9.51]
[1642349659963,52.64579959,150.08,149.98,23.844]
[1642349660164,52.64579959,150.08,149.97,9.51]
[1642349661567,52.64579959,150.08,149.96,24.8127]
[1642349661764,9.51,150.07,149.96,24.8127]
[1642349661963,10.0019,150.04,149.96,24.8127]
[1642349662165,41.0412093,150.03,149.96,45.72570676]
[1642349662363,41.0412093,150.03,149.96,26.4355234]
[1642349663464,10.0021,150.02,149.96,26.4355234]
[1642349663963,9.51,150.07,149.96,24.8127]
[1642349665065,38.94824076,150.06,149.96,24.8127]
[1642349665464,10.0009,150.04,149.96,24.8127]
[1642349666966,48.94804076,150.06,149.96,24.8127]
[1642349667366,48.94804076,150.06,149.96,34.3227]
[1642349667566,48.94804076,150.06,149.96,101.0127]
[1642349668167,38.94824076,150.06,149.96,101.0127]
[1642349672169,38.94824076,150.06,149.96,34.3227]
[1642349674372,48.94774076,150.06,149.96,34.3227]
[1642349674875,48.94774076,150.06,149.96,24.8127]
[1642349676075,48.94774076,150.06,149.95,34.0103]
[1642349676275,50.64851664,150.06,149.95,24.5003]
[1642349676478,117.33851664,150.06,149.92,9.51]
[1642349676779,10.005,150.01,149.9,55.5803]
[1642349676975,41.39886281,150.0,149.9,55.5803]
[1642349678079,41.39886281,150.0,149.9,78.83546527]
[1642349678479,10.0054,149.97,149.9,78.83546527]
[1642349679080,10.0054,149.97,149.9,55.5803]
[1642349679881,10.0054,149.97,149.9,32.9568]
[1642349680782,10.0054,149.97,149.9,23.4468]
[1642349683212,10.0044,149.99,149.9,23.4468]
[1642349689524,10.0044,149.99,149.87,9.51]
[1642349689720,53.53367588,149.99,149.86,24.6217]
[1642349690120,66.69,149.98,149.86,24.6217]
[1642349690322,10.0089,149.95,149.86,24.6217]
[1642349690523,41.07857135,149.94,149.82,9.51]
[1642349690727,42.77934723,149.94,149.82,9.51]
[1642349691131,9.51,149.93,149.81,24.14816011]
[1642349691332,19.41977588,149.93,149.81,24.14816011]
[1642349691829,17.719,149.93,149.81,24.14816011]
[1642349692428,10.0102,149.91,149.81,24.14816011]
[1642349692627,10.0102,149.91,149.81,47.94636011]
[1642349693629,10.0102,149.91,149.81,23.7982]
[1642349694634,10.0102,149.91,149.82,25.8732169]
[1642349695632,10.0102,149.91,149.81,23.7982]
[1642349696634,10.0102,149.91,149.81,42.35580895]
[1642349700641,10.0102,149.91,149.81,43.63372085]
[1642349700849,10.0102,149.91,149.81,110.32372085]
[1642349701047,10.0083,149.93,149.82,9.51]
[1642349701349,41.07857135,149.94,149.83,66.69]
[1642349701547,41.07857135,149.94,149.86,7.3280316]
[1642349703872,51.08617135,149.94,149.86,7.3280316]
[1642349704271,51.08617135,149.94,149.85,9.51]
[1642349704472,51.08617135,149.94,149.84,24.4054]
[1642349705271,51.08617135,149.94,149.85,22.79448124]
[1642349706071,51.08617135,149.94,149.85,32.30448124]
[1642349707671,41.07857135,149.94,149.85,32.30448124]
[1642349708773,1.11051609,149.95,149.85,99.24448124]
[1642349708976,10.005,149.98,149.87,66.69]
[1642349709173,10.005,149.98,149.88,22.8681]
[1642349709587,0.49839174,149.93,149.88,22.8681]
[1642349709789,1.00640918,149.93,149.89,9.51]
[1642349709986,16.96824053,150.02,149.91,66.69]
[1642349710189,10.0025,150.02,149.92,9.51]
[1642349710807,10.0025,150.02,149.92,34.0151]
[1642349710990,44.99432366,150.01,149.93,18.74847487]
[1642349713498,33.6341,150.04,149.94,66.69]
[1642349713695,10.0011,150.04,149.94,89.5801]
[1642349713995,7.33742362,150.07,149.95,9.51]
[1642349714197,5.63664774,150.07,149.96,91.3429]
[1642349714394,39.2909937,150.07,149.96,100.8529]
[1642349714695,34.0634,150.1,149.97,0.26]
[1642349714896,10.2972,150.1,149.98,9.51]
[1642349715095,10.2972,150.1,149.99,22.6398]
[1642349715394,0.3,150.1,149.99,40.4538]
[1642349715593,48.64753369,150.1,150.0,7.13716568]
[1642349715793,48.64753369,150.1,150.01,9.51]
[1642349717396,48.64753369,150.1,150.01,17.828]
[1642349718799,0.3,150.1,150.01,17.828]
[1642349718999,0.3,150.1,150.01,40.7293]
[1642349719200,0.3,150.1,150.02,66.69]
[1642349720100,0.3,150.1,150.02,66.94]
[1642349720300,0.3,150.1,150.03,76.2]
[1642349720500,0.3,150.1,150.03,9.51]
[1642349722533,0.3,150.1,150.04,66.69]
[1642349723436,0.3,150.1,150.03,9.51]
[1642349723738,0.3,150.1,150.05,18.74847487]
[1642349726834,0.3,150.1,150.05,85.43847487]
[1642349727035,0.3,150.1,150.05,18.74847487]
[1642349730541,0.3,150.1,150.05,85.43847487]
[1642349730740,0.3,150.1,150.05,94.94847487]
[1642349730944,0.3,150.1,150.06,22.5657]
[1642349731144,5.63664774,150.24,150.07,66.69]
[1642349731344,29.81274774,150.24,150.09,66.69]
[1642349731548,41.27999323,150.23,150.11,66.69]
[1642349731746,41.27999323,150.23,150.12,9.51]
[1642349731945,41.27999323,150.23,150.12,32.3866]
[1642349732144,29.81274774,150.24,150.13,66.69]
[1642349732344,24.1761,150.24,150.13,74.529]
[1642349733147,47.81467472,150.23,150.13,74.529]
[1642349735766,47.81467472,150.23,150.13,7.839]
[1642349735950,57.80287472,150.23,150.12,99.0766]
[1642349736250,57.80287472,150.23,150.12,105.0766]
[1642349736951,9.9871,150.25,150.12,105.0766]
[1642349737150,9.51,150.29,150.12,106.60439228]
[1642349737351,33.9849,150.31,150.14,66.69]
[1642349737554,33.9849,150.31,150.15,32.5012]
[1642349737850,43.937853,150.3,150.16,18.74847487]
[1642349738050,43.937853,150.3,150.17,76.2]
[1642349738449,9.9844,150.29,150.17,9.51]
[1642349738652,9.9844,150.29,150.18,89.712]
[1642349738852,9.9844,150.29,150.18,96.139]
[1642349739051,9.9844,150.29,150.18,29.449]
[1642349740055,9.9844,150.29,150.18,96.139]
[1642349741154,9.9844,150.29,150.18,29.449]
[1642349741457,9.9844,150.29,150.18,23.022]
[1642349742052,9.9844,150.29,150.18,16.92200001]
[1642349743855,1.70077588,150.28,150.18,16.92200001]
[1642349744056,9.9862,150.27,150.18,16.92200001]
[1642349747860,34.798,150.29,150.18,16.92200001]
[1642349748262,24.8134,150.29,150.18,16.92200001]
[1642349748463,3.7603493,150.31,150.19,9.77]
[1642349748662,3.7603493,150.31,150.2,66.69]
[1642349748861,3.7603493,150.32,150.21,32.0614]
[1642349749061,3.7603493,150.32,150.22,66.69]
[1642349749261,35.49798082,150.31,150.22,7.13716568]
[1642349750463,35.49798082,150.31,150.22,73.82716568]
[1642349751465,35.49798082,150.31,150.22,7.13716568]
[1642349753668,3.7603493,150.36,150.23,66.69]
[1642349753869,3.7603493,150.36,150.23,83.393]
[1642349754069,2.59760061,150.36,150.23,83.393]
[1642349754269,2.59760061,150.36,150.24,1.27779228]
[1642349754495,2.59760061,150.36,150.25,9.51]
[1642349754694,5.63664774,150.39,150.27,123.0]
[1642349754895,5.63664774,150.39,150.28,9.77]
[1642349755095,5.63664774,150.39,150.28,11.04779228]
[1642349755299,5.63664774,150.39,150.28,130.19779228]
[1642349755499,3.75884582,150.4,150.29,67.96779228]
[1642349755697,3.75884582,150.4,150.3,9.51]
[1642349755897,3.75884582,150.4,150.3,10.02]
[1642349756300,3.75884582,150.4,150.3,76.45]
[1642349756501,3.75884582,150.4,150.3,9.51]
[1642349756900,1.70077588,150.39,150.3,9.51]
[1642349757600,10.757094,150.44,150.3,9.51]
[1642349757800,1.70077588,150.41,150.3,9.51]
[1642349758008,45.6286172,150.41,150.3,9.51]
[1642349758301,45.6286172,150.41,150.31,0.26]
[1642349758507,45.6286172,150.41,150.31,9.77]
[1642349758702,43.92784132,150.41,150.32,7.13716568]
[1642349760609,9.9758,150.42,150.32,7.13716568]
[1642349761704,42.94846382,150.41,150.32,16.64716568]
[1642349762104,9.9758,150.42,150.32,16.64716568]
[1642349762306,9.9758,150.42,150.32,16.89716568]
[1642349762506,5.4596217,150.46,150.32,16.89716568]
[1642349762706,3.75884582,150.47,150.33,0.26]
[1642349762908,3.75884582,150.47,150.34,9.51]
[1642349763108,3.75884582,150.47,150.35,17.58572619]
[1642349763306,3.75884582,150.47,150.36,9.51]
[1642349763506,0.33387226,150.48,150.36,9.51]
[1642349763711,0.33387226,150.48,150.37,66.95]
[1642349763908,0.33387226,150.48,150.38,9.51]
[1642349764107,0.33387226,150.48,150.38,83.822]
[1642349764305,0.33387226,150.48,150.39,7.13716568]
[1642349764709,0.33387226,150.48,150.4,9.51]
[1642349765006,0.33387226,150.48,150.41,66.69]
[1642349765206,0.33387226,150.48,150.4,9.51]
[1642349768120,0.33387226,150.48,150.39,31.38756568]
[1642349768914,0.33387226,150.48,150.37,9.51]
[1642349769115,10.30577226,150.48,150.37,9.51]
[1642349769417,10.30577226,150.48,150.37,9.76]
[1642349769615,0.33387226,150.48,150.37,9.76]
[1642349769815,0.33387226,150.48,150.38,21.89577525]
[1642349770015,0.33387226,150.48,150.39,9.51]
[1642349770317,0.33387226,150.48,150.39,35.77699228]
[1642349770515,0.33387226,150.48,150.39,34.4992]
[1642349770718,0.33387226,150.48,150.4,0.26]
[1642349771316,0.33387226,150.48,150.41,9.51]
[1642349771516,0.33387226,150.48,150.41,34.70939228]
[1642349771721,0.33387226,150.48,150.42,66.95]
[1642349771915,0.33387226,150.48,150.43,34.2087]
[1642349772121,0.33387226,150.48,150.44,2.82711662]
[1642349772316,0.33387226,150.48,150.44,12.33711662]
[1642349773247,59.11649099,150.56,150.44,12.33711662]
[1642349773248,1.86961555,150.56,150.45,123.0]
[1642349773419,1.86961555,150.56,150.45,123.25]
[1642349773619,1.86961555,150.56,150.46,9.51]
[1642349773821,1.86961555,150.56,150.47,66.69]
[1642349774020,25.62261555,150.58,150.47,66.69]
[1642349774220,40.5284773,150.57,150.48,20.82124686]
[1642349774920,40.5284773,150.57,150.46,9.51]
[1642349775120,42.22925318,150.57,150.46,9.51]
[1642349775922,42.22925318,150.57,150.47,19.93557073]
[1642349776322,40.5284773,150.57,150.47,19.93557073]
[1642349776523,50.4941773,150.57,150.47,19.93557073]
[1642349776726,1.86961555,150.56,150.47,19.93557073]
[1642349776923,1.86961555,150.56,150.44,9.51]
[1642349777122,68.55961555,150.56,150.39,22.9521]
[1642349777322,11.21077588,150.55,150.4,9.51]
[1642349777721,1.70077588,150.54,150.4,9.51]
[1642349777923,53.33782886,150.53,150.41,22.59948703]
[1642349778123,37.37080084,150.49,150.41,22.59948703]
[1642349778326,37.37080084,150.49,150.39,22.9521]
[1642349778824,9.51,150.53,150.39,22.9521]
[1642349779425,9.51,150.53,150.39,23.0221]
[1642349779626,9.9705,150.5,150.39,23.0221]
[1642349779826,36.04303336,150.49,150.4,17.71091083]
[1642349780026,1.86961555,150.51,150.4,17.71091083]
[1642349781060,37.45074074,150.5,150.4,17.71091083]
[1642349781461,9.9713,150.49,150.4,17.71091083]
[1642349782159,9.9713,150.49,150.39,22.9521]
[1642349782359,9.9713,150.49,150.38,34.3531]
[1642349782556,9.9713,150.49,150.38,9.51]
[1642349782760,9.9713,150.49,150.34,487.13272393]
[1642349782761,11.84091555,150.49,150.35,9.51]
[1642349782961,35.54191555,150.49,150.36,23.0285]
[1642349783156,35.54191555,150.49,150.36,45.06055821]
[1642349783358,37.24269143,150.49,150.36,9.51]
[1642349783760,9.975,150.45,150.36,9.51]
[1642349784557,36.50981206,150.44,150.36,9.51]
[1642349784759,1.86961555,150.43,150.36,9.51]
[1642349784958,9.9759,150.42,150.34,487.13272393]
[1642349785158,9.9759,150.42,150.32,9.51]
[1642349785777,49.2041063,150.41,150.33,19.8844094]
[1642349786066,59.1808063,150.41,150.33,19.8844094]
[1642349786260,59.1808063,150.41,150.32,9.51]
[1642349786762,61.05042185,150.41,150.32,9.51]
[1642349787760,1.86961555,150.4,150.32,9.51]
[1642349788060,9.9778,150.39,150.32,9.51]
[1642349788259,37.75689196,150.38,150.32,9.51]
[1642349788861,1.86961555,150.4,150.32,9.51]
[1642349789663,1.86961555,150.41,150.32,9.51]
[1642349789864,41.30805338,150.4,150.32,9.51]
[1642349791868,51.28505338,150.4,150.32,9.51]
[1642349793070,41.30805338,150.4,150.32,9.51]
[1642349793873,1.86961555,150.41,150.32,9.51]
[1642349794271,1.86961555,150.41,150.32,17.165]
[1642349794772,1.86961555,150.41,150.34,3.83675756]
[1642349795370,51.52084162,150.42,150.34,4.08675756]
[1642349795571,1.86961555,150.42,150.35,0.07]
[1642349795772,1.86961555,150.42,150.35,9.58]
[1642349795971,1.86961555,150.42,150.35,9.83]
[1642349796377,1.86961555,150.44,150.35,9.83]
[1642349796577,38.87122301,150.42,150.35,9.83]
[1642349797475,38.87122301,150.42,150.35,9.58]
[1642349797677,1.86961555,150.44,150.35,9.83]
[1642349798475,1.86961555,150.44,150.35,9.58]
[1642349798676,44.38975144,150.43,150.35,9.83]
[1642349798879,44.38975144,150.43,150.35,9.58]
[1642349799978,46.25936699,150.43,150.35,9.58]
[1642349801581,56.23436699,150.43,150.35,9.51]
[1642349801779,56.23436699,150.43,150.32,24.3033]
[1642349802180,56.23436699,150.43,150.32,33.8133]
[1642349802583,42.92700648,150.4,150.32,33.8133]
[1642349802883,52.90410648,150.4,150.32,33.8133]
[1642349803280,52.90410648,150.4,150.32,9.51]
[1642349803481,54.77372203,150.4,150.32,9.51]
[1642349803682,56.47449791,150.4,150.32,9.51]
[1642349804284,1.86961555,150.39,150.32,9.51]
[1642349804482,11.84721555,150.39,150.32,9.51]
[1642349805585,11.84721555,150.39,150.33,5.68971029]
[1642349805784,1.86961555,150.39,150.33,5.68971029]
[1642349805983,1.86961555,150.39,150.32,9.51]
[1642349807587,1.86961555,150.38,150.28,24.0775]
[1642349807788,1.86961555,150.38,150.29,9.51]
[1642349808386,48.9600159,150.37,150.3,22.1604683]
[1642349808684,48.9600159,150.37,150.29,9.51]
[1642349809488,58.9390159,150.37,150.29,9.51]
[1642349809989,48.9600159,150.37,150.29,9.51]
[1642349810189,1.86961555,150.37,150.29,9.51]
[1642349810390,1.86961555,150.36,150.3,66.69]
[1642349810789,1.86961555,150.36,150.31,9.51]
[1642349811191,1.86961555,150.36,150.32,5.50346748]
[1642349811391,1.86961555,150.38,150.32,5.50346748]
[1642349811989,1.86961555,150.38,150.32,5.75346748]
[1642349812189,1.86961555,150.38,150.33,9.51]
[1642349812390,1.86961555,150.38,150.33,9.76]
[1642349812789,1.86961555,150.38,150.33,9.51]
[1642349813298,42.67885653,150.43,150.33,9.51]
[1642349813299,1.86961555,150.39,150.33,9.51]
[1642349813488,1.86961555,150.39,150.33,9.76]
[1642349815794,1.86961555,150.39,150.33,9.51]
[1642349819194,13.73464582,150.42,150.33,9.51]
[1642349819195,43.85367603,150.38,150.33,9.51]
[1642349819796,1.86961555,150.38,150.33,9.51]
[1642349823628,1.86961555,150.38,150.3,9.51]
[1642349825129,1.86961555,150.36,150.3,9.51]
[1642349825329,1.86961555,150.36,150.25,47.6395]
[1642349825330,8.82861555,150.36,150.26,9.51]
[1642349825530,10.52939143,150.36,150.26,9.51]
[1642349825732,45.64278804,150.35,150.26,9.51]
[1642349826129,47.34356392,150.35,150.26,9.51]
[1642349826331,1.86961555,150.34,150.26,9.51]
[1642349826529,11.85101555,150.34,150.26,9.51]
[1642349827230,1.86961555,150.33,150.26,9.51]
[1642349828334,44.23747364,150.32,150.25,47.6395]
[1642349828531,54.21987364,150.32,150.25,47.6395]
[1642349831338,56.08948919,150.32,150.25,47.6395]
[1642349831736,56.08948919,150.32,150.22,9.51]
[1642349832538,57.79026507,150.32,150.22,9.51]
[1642349833344,66.69,150.31,150.22,9.51]
[1642349833546,43.67727897,150.28,150.22,9.51]
[1642349835147,53.66227897,150.28,150.22,9.51]
[1642349835648,53.66227897,150.28,150.19,23.6839]
[1642349836248,53.66227897,150.28,150.18,9.51]
[1642349838452,53.66227897,150.28,150.18,32.2436]
[1642349838850,53.66227897,150.28,150.18,32.4936]
[1642349839051,9.985,150.28,150.18,32.4936]
[1642349839251,1.86961555,150.31,150.18,100.45905075]
[1642349839453,1.86961555,150.31,150.19,0.26]
[1642349839655,1.86961555,150.31,150.2,9.51]
[1642349839852,1.86961555,150.31,150.21,23.7411]
[1642349840056,1.86961555,150.31,150.22,16.23573021]
[1642349840454,11.85081555,150.34,150.22,16.48573021]
[1642349840652,11.85081555,150.34,150.23,24.8911]
[1642349840878,11.85081555,150.34,150.24,9.51]
[1642349841078,1.86961555,150.34,150.24,9.51]
[1642349841278,1.86961555,150.34,150.24,9.76]
[1642349841481,38.56898033,150.35,150.26,17.6632894]
[1642349841681,38.56898033,150.35,150.26,27.1732894]
[1642349841881,38.56898033,150.35,150.26,27.4232894]
[1642349842682,36.69936478,150.35,150.26,27.4232894]
[1642349844782,46.67976478,150.35,150.26,9.76]
[1642349844981,46.67976478,150.35,150.26,9.51]
[1642349845883,46.67976478,150.35,150.23,51.67038308]
[1642349846083,46.67976478,150.35,150.23,34.4011]
[1642349846487,9.9823,150.32,150.23,34.4011]
[1642349847183,48.6421696,150.31,150.23,34.4011]
[1642349847783,48.6421696,150.31,150.23,9.51]
[1642349848386,48.6421696,150.31,150.24,20.17288939]
[1642349849287,48.6421696,150.31,150.23,9.51]
[1642349849489,58.6251696,150.31,150.23,9.51]
[1642349852993,60.49478515,150.31,150.23,9.51]
[1642349853193,60.49478515,150.31,150.2,33.8547]
[1642349853493,60.49478515,150.31,150.2,34.1047]
[1642349853893,1.86961555,150.3,150.2,33.8547]
[1642349854095,9.9849,150.28,150.2,33.8547]
[1642349854294,45.71345131,150.27,150.2,33.8547]
[1642349854900,45.71345131,150.27,150.21,1.3084066]
[1642349855100,24.5366,150.31,150.21,1.3084066]
[1642349855101,1.86961555,150.29,150.21,1.3084066]
[1642349855298,1.86961555,150.29,150.21,1.5584066]
[1642349855500,1.86961555,150.29,150.22,9.51]
[1642349855898,1.86961555,150.29,150.22,9.76]
[1642349856098,48.91614882,150.28,150.22,9.76]
[1642349856499,48.91614882,150.28,150.22,9.51]
[1642349856698,48.91614882,150.28,150.22,9.76]
[1642349857298,48.91614882,150.28,150.22,9.51]
[1642349857901,1.86961555,150.31,150.22,9.76]
[1642349858899,37.31085902,150.3,150.22,9.76]
[1642349861002,37.31085902,150.3,150.22,9.51]
[1642349862304,39.18047457,150.3,150.22,9.51]
[1642349862504,49.16427457,150.3,150.22,9.51]
[1642349866208,1.86961555,150.29,150.22,9.51]
[1642349866407,11.85441555,150.29,150.22,9.51]
[1642349867230,11.85441555,150.29,150.22,13.38284214]
[1642349869031,11.85441555,150.29,150.22,9.51]
[1642349869231,11.85441555,150.29,150.2,24.3447]
[1642349869430,11.85441555,150.29,150.2,24.5947]
[1642349870033,1.86961555,150.29,150.21,18.35182587]
[1642349870232,1.86961555,150.29,150.21,27.86182587]
[1642349870432,1.86961555,150.29,150.21,28.11182587]
[1642349870636,3.75884582,150.32,150.22,189.69]
[1642349870834,5.63664774,150.36,150.26,66.69]
[1642349871034,3.78996457,150.33,150.28,66.69]
[1642349871233,0.00996457,150.33,150.29,9.51]
[1642349871434,5.63664774,150.37,150.31,66.69]
[1642349871635,5.63664774,150.37,150.32,15.54719374]
[1642349871834,5.63664774,150.37,150.32,15.79719374]
[1642349872036,3.78778391,150.44,150.33,66.69]
[1642349872237,3.78778391,150.44,150.34,9.51]
[1642349872436,3.78778391,150.44,150.34,9.76]
[1642349872638,3.78778391,150.44,150.34,9.51]
[1642349872836,43.68944162,150.43,150.34,9.51]
[1642349874339,120.35554162,150.43,150.34,9.51]
[1642349874547,123.0,150.42,150.3,9.51]
[1642349874748,66.69,150.41,150.3,9.51]
[1642349875349,39.16487927,150.4,150.3,9.51]
[1642349875549,66.69,150.39,150.3,9.51]
[1642349875752,39.16487927,150.4,150.3,9.51]
[1642349876548,9.98,150.39,150.3,9.51]
[1642349877449,76.67,150.39,150.3,9.51]
[1642349877651,76.67,150.39,150.26,31.5993377]
[1642349877951,76.67,150.39,150.27,9.51]
[1642349880653,76.67,150.39,150.28,2.67588873]
[1642349880857,76.67,150.39,150.28,12.18588873]
[1642349881053,76.67,150.39,150.28,9.51]
[1642349882854,76.67,150.39,150.2,168.12019971]
[1642349883060,92.452,150.39,150.24,9.51]
[1642349883254,92.452,150.39,150.22,9.51]
[1642349883655,92.452,150.39,150.22,35.37156814]
[1642349884057,92.452,150.39,150.22,9.51]
[1642349884255,94.15277588,150.39,150.22,9.51]
[1642349885056,127.44277588,150.39,150.22,9.51]
[1642349885656,3.5996625,150.38,150.22,9.51]
[1642349885857,9.9866,150.34,150.22,9.51]
[1642349886062,16.7036,150.34,150.22,9.51]
[1642349886259,9.51,150.33,150.18,9.51]
[1642349886458,46.04413104,150.33,150.18,41.62040537]
[1642349887462,9.9867,150.29,150.18,9.51]
[1642349887860,9.9867,150.29,150.18,9.76]
[1642349888461,49.56693812,150.28,150.18,9.51]
[1642349888664,59.55313812,150.28,150.18,9.51]
[1642349888862,59.55313812,150.28,150.18,76.45]
[1642349889065,33.2822,150.34,150.19,1.27062554]
[1642349889264,33.2822,150.34,150.2,9.51]
[1642349889462,33.2822,150.34,150.2,9.76]
[1642349889662,33.2822,150.34,150.21,1.27062554]
[1642349889863,33.2822,150.34,150.22,9.51]
[1642349890062,42.72020266,150.33,150.23,27.74164353]
[1642349890463,42.72020266,150.33,150.24,9.51]
[1642349890666,42.72020266,150.33,150.24,22.6718288]
[1642349890865,42.72020266,150.33,150.24,22.9218288]
[1642349891068,42.72020266,150.33,150.26,6.15737607]
[1642349891267,42.72020266,150.33,150.27,9.51]
[1642349891466,9.9795,150.38,150.27,9.76]
[1642349892471,42.46792865,150.37,150.27,9.76]
[1642349893792,42.46792865,150.37,150.28,0.07]
[1642349893991,42.46792865,150.37,150.28,9.58]
[1642349894895,42.46792865,150.37,150.29,27.74164353]
[1642349896299,42.46792865,150.37,150.3,9.51]
[1642349897095,6.94793095,150.43,150.3,9.51]
[1642349897700,9.9761,150.43,150.3,9.51]
[1642349898198,36.43302458,150.42,150.3,76.2]
[1642349898997,46.40972458,150.42,150.25,118.9]
[1642349899199,33.29,150.4,150.2,9.51]
[1642349899397,66.69,150.4,150.16,472.41458435]
[1642349899598,66.69,150.38,150.16,472.41458435]
[1642349899799,118.9,150.35,150.16,472.41458435]
[1642349899998,9.9871,150.29,150.17,38.09929135]
[1642349900199,36.43302458,150.28,150.17,38.09929135]
[1642349900897,36.43302458,150.28,150.18,9.51]
[1642349902002,9.9836,150.3,150.19,66.69]
[1642349902399,9.9836,150.3,150.18,9.51]
[1642349903002,41.10287949,150.29,150.17,38.09929135]
[1642349903203,41.10287949,150.29,150.18,9.51]
[1642349903402,9.9851,150.28,150.18,9.51]
[1642349904533,9.9851,150.28,150.18,9.76]
[1642349904904,9.9851,150.28,150.18,9.51]
[1642349905305,41.10287949,150.29,150.18,9.51]
[1642349905504,41.10287949,150.29,150.18,9.76]
[1642349905706,41.10287949,150.29,150.18,76.45]
[1642349906906,41.10287949,150.29,150.18,76.2]
[1642349907106,41.10287949,150.29,150.18,77.47039456]
[1642349907406,41.10287949,150.29,150.18,76.2]
[1642349909209,41.10287949,150.29,150.19,0.07]